bitfinex/quotes_BTCUSD_20220211
["timestamp","ask_amount","ask_price","bid_price","bid_amount"]
[1644596703483,1.05,43662.0,43654.0,0.16208524]
[1644596703741,1.05,43662.0,43649.0,0.34222119]
[1644596703742,1.05,43656.0,43651.0,0.24478487]
[1644596704034,1.05,43656.0,43650.0,0.00019641]
[1644596704035,1.10730785,43656.0,43650.0,0.00019641]
[1644596704234,1.10730785,43656.0,43644.0,0.24478487]
[1644596704235,0.25009889,43654.0,43649.0,0.19584122]
[1644596704440,0.30724526,43653.0,43649.0,0.19584122]
[1644596704638,0.41455726,43653.0,43647.0,0.19603763]
[1644596704835,0.057311,43651.0,43646.0,0.19603763]
[1644596705035,0.057311,43651.0,43648.0,0.19584122]
[1644596705036,0.40517055,43650.0,43648.0,0.19584122]
[1644596705234,0.45517055,43650.0,43648.0,0.12102032]
[1644596705436,1.05,43649.0,43642.0,0.24478487]
[1644596705739,0.4599513,43648.0,43641.0,0.01]
[1644596705937,0.057319,43647.0,43641.0,0.01]
[1644596706139,0.05,43645.0,43643.0,0.00061635]
[1644596706437,0.77210614,43644.0,43643.0,0.00061635]
[1644596706637,0.88676414,43644.0,43643.0,0.00061635]
[1644596706836,0.98676414,43644.0,43643.0,0.00061635]
[1644596707052,0.98676414,43644.0,43641.0,0.01]
[1644596707241,0.16464,43643.0,43641.0,0.01061636]
[1644596707512,1.05,43640.0,43631.0,0.2937134]
[1644596707703,1.05,43640.0,43623.0,0.29617984]
[1644596707704,0.05,43632.0,43623.0,0.29617984]
[1644596707900,0.05,43632.0,43623.0,0.00246644]
[1644596708100,0.05,43629.0,43623.0,0.00246644]
[1644596708299,0.099546,43628.0,43623.0,0.00246644]
[1644596708498,0.05,43627.0,43623.0,0.00246644]
[1644596708702,0.0422,43627.0,43625.0,0.08622714]
[1644596708901,0.0422,43635.0,43625.0,0.08622714]
[1644596709300,0.0422,43635.0,43625.0,0.37994054]
[1644596709499,0.057318,43640.0,43631.0,0.36314145]
[1644596709703,0.057317,43638.0,43631.0,0.36314145]
[1644596710102,0.05,43640.0,43631.0,0.36314145]
[1644596710301,3.37978662,43646.0,43631.0,0.36314145]
[1644596710502,0.057312,43643.0,43631.0,0.36314145]
[1644596710700,0.36353011,43641.0,43631.0,0.36314145]
[1644596710902,0.057314,43640.0,43630.0,0.26361714]
[1644596711348,0.057314,43640.0,43635.0,0.00061926]
[1644596711951,0.057319,43639.0,43635.0,0.00061926]
[1644596712348,0.05732,43638.0,43630.0,0.26361714]
[1644596712552,0.05732,43638.0,43635.0,0.00061926]
[1644596713052,0.114639,43638.0,43635.0,0.00061926]
[1644596713252,0.23,43638.0,43635.0,0.00061926]
[1644596713450,0.23,43638.0,43636.0,0.322373]
[1644596713650,0.23,43638.0,43637.0,0.0759788]
[1644596713849,0.23,43638.0,43634.0,0.36036078]
[1644596714150,0.23,43638.0,43637.0,0.1948079]
[1644596714986,0.42,43649.0,43643.0,0.42339728]
[1644596715380,0.42,43649.0,43644.0,0.25665674]
[1644596715581,0.477304,43649.0,43644.0,0.25665674]
[1644596715783,0.42,43649.0,43644.0,0.25665674]
[1644596716281,0.42,43649.0,43647.0,0.08070651]
[1644596716485,0.42,43649.0,43644.0,0.25665674]
[1644596717687,0.42,43649.0,43645.0,0.06839089]
[1644596718947,0.057295,43660.0,43652.0,0.08215879]
[1644596718948,0.0153986,43660.0,43652.0,0.08215879]
[1644596719146,0.057295,43657.0,43652.0,0.08215879]
[1644596719346,0.05,43659.0,43652.0,0.08215879]
[1644596719950,0.057294,43658.0,43644.0,0.6677783]
[1644596720148,0.057297,43655.0,43644.0,0.35665674]
[1644596720749,0.057297,43655.0,43644.0,0.25665674]
[1644596721051,0.40949359,43657.0,43644.0,0.00019606]
[1644596721251,0.057299,43654.0,43643.0,0.42339728]
[1644596721449,0.35928717,43653.0,43643.0,0.42339728]
[1644596721852,0.45928717,43653.0,43643.0,0.42339728]
[1644596722051,0.50928717,43653.0,43643.0,0.42339728]
[1644596722253,0.05731,43650.0,43646.0,0.00069246]
[1644596722485,0.36622672,43649.0,43646.0,0.00069246]
[1644596722683,0.41622672,43649.0,43646.0,0.00069246]
[1644596723080,0.107311,43649.0,43646.0,0.00069246]
[1644596723280,0.107311,43649.0,43644.0,0.00019606]
[1644596723482,0.05731,43648.0,43645.0,0.06417323]
[1644596723682,0.057301,43653.0,43645.0,0.00069246]
[1644596724283,0.057301,43653.0,43650.0,0.25852011]
[1644596724489,0.42,43657.0,43650.0,0.25852011]
[1644596724783,0.42,43657.0,43652.0,0.07771166]
[1644596724981,0.42,43657.0,43647.0,0.00088852]
[1644596725180,0.23,43653.0,43647.0,0.00069246]
[1644596725587,0.337301,43653.0,43644.0,0.00019606]
[1644596725784,0.32268554,43652.0,43643.0,0.42359334]
[1644596725983,0.32268554,43652.0,43648.0,0.00065411]
[1644596726230,0.394622,43653.0,43648.0,0.00065411]
[1644596726530,0.494622,43653.0,43648.0,0.00065411]
[1644596726729,0.057307,43652.0,43644.0,0.00019606]
[1644596726928,0.27334885,43645.0,43643.0,0.42339728]
[1644596727135,0.114629,43646.0,43643.0,0.42339728]
[1644596727730,0.41188648,43646.0,43643.0,0.42339728]
[1644596728333,0.46920048,43646.0,43643.0,0.42339728]
[1644596728732,0.34099836,43645.0,43643.0,0.42339728]
[1644596729331,0.46920048,43646.0,43643.0,0.42339728]
[1644596729987,0.171943,43646.0,43643.0,0.42339728]
[1644596730580,0.114629,43646.0,43643.0,0.42339728]
[1644596732280,0.154629,43646.0,43643.0,0.42339728]
[1644596732480,0.154629,43646.0,43643.0,0.71832556]
[1644596732680,0.097315,43646.0,43643.0,0.71832556]
[1644596733284,0.097315,43646.0,43643.0,0.42339728]
[1644596733732,0.29588398,43644.0,43643.0,0.42339728]
[1644596737486,0.154628,43646.0,43643.0,0.42339728]
[1644596737681,0.154628,43646.0,43643.0,0.42124232]
[1644596739882,0.04,43646.0,43643.0,0.42124232]
[1644596741245,0.31208721,43645.0,43643.0,0.42124232]
[1644596741440,0.04,43646.0,43643.0,0.42124232]
[1644596741639,0.0459,43645.0,43643.0,0.42124232]
[1644596742037,0.30807726,43644.0,43643.0,0.42124232]
[1644596742240,0.77804312,43644.0,43643.0,0.42124232]
[1644596742439,0.84270212,43644.0,43643.0,0.42124232]
[1644596742638,0.99270212,43644.0,43643.0,0.42124232]
[1644596743437,1.33871067,43644.0,43643.0,0.42124232]
[1644596744639,1.22199377,43643.0,43641.0,0.00085231]
[1644596744840,0.5448285,43642.0,43636.0,0.00019606]
[1644596745083,0.5448285,43642.0,43626.0,0.1379]
[1644596745084,0.5948285,43642.0,43641.0,0.00065625]
[1644596745283,0.6948285,43642.0,43641.0,0.00065625]
[1644596745487,0.103237,43642.0,43641.0,0.00065625]
[1644596745690,0.5,43645.0,43641.0,0.00065625]
[1644596745885,0.04,43646.0,43641.0,0.00065625]
[1644596746086,0.04,43646.0,43636.0,0.00019606]
[1644596746285,0.04,43646.0,43635.0,0.00019606]
[1644596746491,0.348099,43646.0,43641.0,0.00065625]
[1644596746687,0.28021519,43645.0,43641.0,0.00065625]
[1644596746986,0.28021519,43645.0,43641.0,0.05797419]
[1644596747188,0.04,43646.0,43641.0,0.05797419]
[1644596747387,0.04,43646.0,43641.0,0.05731794]
[1644596747388,0.27,43646.0,43641.0,0.05731794]
[1644596747588,0.27,43646.0,43641.0,0.0579725]
[1644596747787,0.27,43646.0,43641.0,0.25636007]
[1644596748185,0.53144728,43646.0,43641.0,0.25636007]
[1644596748387,0.27,43646.0,43642.0,0.31136178]
[1644596748741,0.27,43646.0,43641.0,0.25655613]
[1644596748941,0.114621,43656.0,43650.0,0.25276379]
[1644596749145,0.4,43651.0,43650.0,0.25276379]
[1644596749344,0.5459,43651.0,43650.0,0.25276379]
[1644596749644,0.5459,43651.0,43642.0,0.00019606]
[1644596749645,0.35,43643.0,43642.0,0.00019606]
[1644596749942,0.35,43643.0,43626.0,0.19560693]
[1644596749943,0.6459,43643.0,43626.0,0.19560693]
[1644596750147,0.6459,43643.0,43639.0,0.00261864]
[1644596750148,0.38703684,43641.0,43639.0,0.00261864]
[1644596750340,0.0459,43640.0,43639.0,0.00261864]
[1644596750540,0.04562429,43640.0,43639.0,0.00261864]
[1644596750940,0.3277228,43640.0,43633.0,0.05733341]
[1644596751341,0.057334,43639.0,43636.0,0.114669]
[1644596751542,0.0459,43638.0,43636.0,0.114669]
[1644596755586,0.0459,43638.0,43635.0,0.057334]
[1644596755883,0.057335,43637.0,43635.0,0.057334]
[1644596757940,9.14654512,43638.0,43635.0,0.057334]
[1644596758338,9.1459,43638.0,43635.0,0.057334]
[1644596758638,9.14654512,43638.0,43635.0,0.057334]
[1644596758838,0.23,43637.0,43635.0,0.057334]
[1644596759239,0.23,43637.0,43635.0,0.22198267]
[1644596759443,0.23,43637.0,43635.0,0.17198267]
[1644596759639,0.23,43637.0,43636.0,0.05]
[1644596760083,0.23,43637.0,43635.0,0.22198267]
[1644596760883,0.23,43637.0,43635.0,0.27930367]
[1644596762286,0.23,43637.0,43635.0,0.22198267]
[1644596763285,0.23,43637.0,43635.0,0.17198267]
[1644596764758,0.23,43637.0,43635.0,0.22198267]
[1644596765159,0.23,43637.0,43635.0,0.17198267]
[1644596765365,0.23,43637.0,43634.0,0.11466498]
[1644596765366,0.05,43636.0,43634.0,3.02e-06]
[1644596765560,0.0459,43635.0,43634.0,3.02e-06]
[1644596768087,0.22956741,43634.0,43633.0,0.05734]
[1644596768287,0.27546741,43634.0,43633.0,0.05734]
[1644596769090,1.05,43633.0,43624.0,0.05733899]
[1644596769295,1.05,43633.0,43622.0,0.00275713]
[1644596769296,0.057347,43627.0,43622.0,0.00275713]
[1644596769493,0.29937472,43623.0,43622.0,0.00295228]
[1644596769690,0.29937472,43623.0,43622.0,0.00275713]
[1644596770090,0.29937472,43623.0,43622.0,0.06011113]
[1644596770691,0.35672872,43623.0,43622.0,0.06011113]
[1644596770891,0.45672872,43623.0,43622.0,0.06011113]
[1644596774435,0.157354,43623.0,43622.0,0.06011113]
[1644596774835,0.057354,43623.0,43622.0,0.06011113]
[1644596775489,0.3905539,43626.0,43622.0,0.057354]
[1644596775686,0.1,43626.0,43622.0,0.057354]
[1644596775885,0.1,43626.0,43622.0,0.26499956]
[1644596776087,0.114677,43630.0,43622.0,0.26499956]
[1644596776287,0.114677,43630.0,43622.0,0.26519471]
[1644596776486,0.114677,43630.0,43622.0,0.05754915]
[1644596776687,0.057337,43626.0,43622.0,0.05754915]
[1644596776886,0.33440833,43624.0,43622.0,0.057354]
[1644596777087,0.114685,43627.0,43622.0,0.057354]
[1644596777589,0.114685,43627.0,43622.0,0.05754915]
[1644596778087,0.31684153,43625.0,43622.0,0.05754915]
[1644596778287,0.41684153,43625.0,43622.0,0.057354]
[1644596778489,0.057343,43624.0,43622.0,0.057354]
[1644596778936,0.06586994,43627.0,43622.0,0.057354]
[1644596779137,0.30288627,43626.0,43622.0,0.057354]
[1644596779338,0.30288627,43626.0,43622.0,0.05754915]
[1644596779538,0.057343,43624.0,43622.0,0.057354]
[1644596780355,0.057343,43624.0,43622.0,0.37476598]
[1644596780540,0.114674,43630.0,43622.0,0.42476598]
[1644596780740,0.37956741,43634.0,43622.0,0.42496113]
[1644596780939,0.3114391,43630.0,43622.0,0.42476598]
[1644596781138,0.3114391,43630.0,43625.0,0.057338]
[1644596781139,0.5414391,43630.0,43625.0,0.057338]
[1644596781344,0.6414391,43630.0,43625.0,0.057338]
[1644596782139,0.33,43630.0,43625.0,0.057338]
[1644596782338,0.057333,43629.0,43625.0,0.057338]
[1644596782585,0.057333,43629.0,43625.0,0.107338]
[1644596782787,0.057333,43629.0,43625.0,0.057338]
[1644596784083,0.057333,43629.0,43625.0,0.1146717]
[1644596784284,0.057333,43629.0,43625.0,0.1646717]
[1644596784685,0.057333,43629.0,43625.0,0.16536068]
[1644596785685,0.057333,43629.0,43625.0,0.1646717]
[1644596785887,0.057333,43629.0,43625.0,0.16536068]
[1644596786936,0.057333,43629.0,43625.0,0.1646717]
[1644596787237,0.057333,43629.0,43625.0,0.16536068]
[1644596787637,0.057333,43629.0,43627.0,0.06624655]
[1644596787841,0.057333,43629.0,43627.0,0.1235784]
[1644596788637,0.23,43630.0,43627.0,0.1235784]
[1644596789239,0.23,43630.0,43627.0,0.05733185]
[1644596789441,0.23,43630.0,43627.0,0.11466485]
[1644596789741,0.23,43630.0,43627.0,0.17199585]
[1644596790189,0.287332,43630.0,43627.0,0.17199585]
[1644596790393,0.287332,43630.0,43627.0,0.057333]
[1644596792993,0.287332,43630.0,43627.0,0.06466977]
[1644596793391,0.287332,43630.0,43627.0,0.007333]
[1644596794242,0.32487123,43628.0,43626.0,0.05821605]
[1644596794442,0.057339,43628.0,43626.0,0.05802097]
[1644596794844,0.01645,43627.0,43626.0,0.11535835]
[1644596795152,0.01645,43627.0,43624.0,0.00019508]
[1644596795153,1.05,43626.0,43624.0,0.00019508]
[1644596795347,0.31202515,43625.0,43623.0,0.00019508]
[1644596795547,0.31202515,43625.0,43624.0,0.00068898]
[1644596795742,0.41202515,43625.0,43624.0,0.00068898]
[1644596796048,0.7577473,43625.0,43624.0,0.00068898]
[1644596796245,0.8077473,43625.0,43624.0,0.00068898]
[1644596796445,0.9224583,43625.0,43622.0,0.00019508]
[1644596796643,0.9224583,43625.0,43619.0,0.00019508]
[1644596796644,0.057358,43623.0,43619.0,0.00019508]
[1644596796845,0.0459,43622.0,43614.0,0.00019508]
[1644596797046,0.0459,43622.0,43618.0,0.057356]
[1644596797492,0.114712,43621.0,43618.0,0.057356]
[1644596797688,0.103256,43620.0,43618.0,0.057356]
[1644596797890,0.23,43630.0,43618.0,0.057356]
[1644596798092,0.23,43630.0,43618.0,0.42985128]
[1644596798287,0.23,43630.0,43621.0,0.057333]
[1644596798586,0.114675,43629.0,43621.0,0.107333]
[1644596798988,0.057336,43626.0,43621.0,0.107333]
[1644596800089,0.057336,43626.0,43622.0,0.05733907]
[1644596800390,0.057336,43626.0,43623.0,0.05734]
[1644596800791,0.057336,43626.0,43623.0,0.42991091]
[1644596800992,0.50159841,43634.0,43625.0,0.45859177]
[1644596800993,0.057329,43633.0,43625.0,0.45859177]
[1644596801241,0.59250255,43634.0,43625.0,0.56591877]
[1644596801441,0.49250255,43634.0,43625.0,0.56591877]
[1644596801641,0.59250255,43634.0,43625.0,0.56591877]
[1644596802444,0.057333,43629.0,43625.0,0.56591877]
[1644596803643,0.073786,43627.0,43625.0,0.56591877]
[1644596803844,0.073786,43627.0,43625.0,0.107327]
[1644596804447,0.303786,43627.0,43625.0,0.107327]
[1644596804644,0.303786,43627.0,43625.0,0.057327]
[1644596805087,0.303786,43627.0,43625.0,0.052327]
[1644596805288,0.59584429,43627.0,43625.0,0.052327]
[1644596806287,0.69584429,43627.0,43624.0,0.00068829]
[1644596807387,0.05735,43626.0,43620.0,0.00019508]
[1644596807588,0.057351,43625.0,43623.0,0.00068829]
[1644596807789,0.0459,43624.0,43623.0,0.00068829]
[1644596807988,0.160604,43624.0,43623.0,0.00068829]
[1644596808590,0.160604,43624.0,43620.0,0.00019508]
[1644596808837,0.160604,43624.0,43621.0,0.00068831]
[1644596809038,0.157352,43625.0,43624.0,0.321208]
[1644596809237,0.203252,43625.0,43624.0,0.321208]
[1644596809637,0.260604,43625.0,43624.0,0.321208]
[1644596810139,0.160604,43625.0,43624.0,0.321208]
[1644596810943,0.160604,43625.0,43624.0,0.32042029]
[1644596813591,0.44448225,43625.0,43624.0,0.32042029]
[1644596813787,0.54448225,43625.0,43624.0,0.32042029]
[1644596813987,0.260604,43625.0,43624.0,0.32042029]
[1644596814187,0.5461425,43625.0,43624.0,0.32042029]
[1644596815989,0.60349164,43625.0,43624.0,0.32042029]
[1644596817737,0.65349164,43625.0,43624.0,0.32042029]
[1644596818440,0.65321584,43625.0,43624.0,0.32042029]
[1644596820905,0.36767734,43625.0,43624.0,0.32042029]
[1644596821104,0.310604,43625.0,43624.0,0.32042029]
[1644596821806,0.260604,43625.0,43624.0,0.32042029]
[1644596822106,0.214704,43625.0,43624.0,0.32042029]
[1644596822503,0.114704,43625.0,43624.0,0.32042029]
[1644596823945,0.45551895,43625.0,43624.0,0.32042029]
[1644596824147,0.74784733,43625.0,43624.0,0.32042029]
[1644596824344,0.84784733,43625.0,43624.0,0.32042029]
[1644596825544,0.89374733,43625.0,43624.0,0.32042029]
[1644596826348,0.114706,43623.0,43615.0,0.00019508]
[1644596826547,0.114706,43623.0,43613.0,0.0011]
[1644596826548,1.46479028,43622.0,43613.0,0.0011]
[1644596826751,1.46479028,43622.0,43613.0,0.00385238]
[1644596826947,1.253253,43622.0,43613.0,0.00385238]
[1644596827349,0.11473,43620.0,43613.0,0.00385238]
[1644596827591,0.0459,43619.0,43613.0,0.00385238]
[1644596827790,0.0459,43619.0,43613.0,0.0011]
[1644596827791,0.057363,43615.0,43613.0,0.0011]
[1644596828097,0.0459,43614.0,43613.0,0.0011]
[1644596828891,0.057352,43613.0,43611.0,0.0061]
[1644596829089,0.103252,43613.0,43611.0,0.00678801]
[1644596830090,0.103252,43613.0,43611.0,0.0061]
[1644596830291,0.057352,43613.0,43611.0,0.0061]
[1644596832544,0.057347,43615.0,43612.0,0.29116039]
[1644596832840,0.057347,43615.0,43613.0,0.057351]
[1644596833245,0.057347,43615.0,43612.0,0.29116039]
[1644596833449,0.3768668,43627.0,43613.0,1.1]
[1644596833647,0.3768668,43627.0,43617.0,0.05]
[1644596833648,0.01645,43627.0,43617.0,0.05]
[1644596833845,0.01645,43627.0,43619.0,0.057341]
[1644596834548,0.01645,43627.0,43622.0,0.34246709]
[1644596834747,0.01645,43627.0,43622.0,0.39246709]
[1644596835186,0.01645,43627.0,43623.0,0.05734]
[1644596836189,0.073788,43627.0,43623.0,0.05734]
[1644596836386,0.073788,43627.0,43623.0,0.05757966]
[1644596837189,0.073788,43627.0,43622.0,0.164679]
[1644596837586,0.59732544,43627.0,43623.0,0.00068881]
[1644596837786,0.303788,43627.0,43623.0,0.00068881]
[1644596837988,0.303788,43627.0,43623.0,0.05802881]
[1644596838490,0.24645,43627.0,43623.0,0.05734]
[1644596839140,0.22956741,43634.0,43623.0,0.05734]
[1644596839141,0.22956741,43634.0,43630.0,0.27652702]
[1644596839746,0.114679,43631.0,43630.0,0.27652702]
[1644596840343,0.38316826,43631.0,43630.0,0.27652702]
[1644596840740,0.32956741,43634.0,43630.0,0.27652702]
[1644596841340,0.114679,43632.0,43630.0,0.27652702]
[1644596841741,0.38767009,43631.0,43630.0,0.27652702]
[1644596841941,0.48767009,43631.0,43630.0,0.08206631]
[1644596842987,0.64456646,43631.0,43630.0,0.08206631]
[1644596843286,1.14456646,43631.0,43630.0,0.08206631]
[1644596843486,1.19456646,43631.0,43630.0,0.08206631]
[1644596843786,0.057351,43629.0,43623.0,0.1346]
[1644596843988,0.057351,43629.0,43621.0,0.0006889]
[1644596843989,0.33631955,43624.0,43621.0,0.00088312]
[1644596844286,0.0459,43628.0,43621.0,0.0006889]
[1644596844687,0.0959,43628.0,43620.0,0.00019422]
[1644596844890,0.0959,43628.0,43620.0,0.00068882]
[1644596845086,0.0959,43628.0,43620.0,0.00088304]
[1644596845486,0.057349,43623.0,43620.0,0.00088304]
[1644596845887,0.057349,43623.0,43620.0,0.00019422]
[1644596846086,0.057349,43623.0,43621.0,0.00068883]
[1644596846938,0.057349,43623.0,43615.0,0.114699]
[1644596846939,1.05,43622.0,43615.0,0.114699]
[1644596847139,0.057358,43621.0,43620.0,0.00088308]
[1644596847338,0.057358,43621.0,43620.0,0.00068883]
[1644596848139,0.3436851,43621.0,43614.0,0.00019425]
[1644596848339,0.057358,43621.0,43618.0,0.00023899]
[1644596848540,0.103258,43621.0,43618.0,0.00023899]
[1644596848739,0.16061503,43621.0,43618.0,0.00023899]
[1644596848939,0.114717,43620.0,43618.0,0.00023899]
[1644596849340,0.114717,43620.0,43614.0,0.00019425]
[1644596849540,0.114717,43620.0,43617.0,0.00068884]
[1644596849740,0.05735771,43619.0,43617.0,0.00068884]
[1644596850388,0.05736,43618.0,43617.0,0.00068884]
[1644596850589,0.05736,43618.0,43613.0,0.28892988]
[1644596850787,0.05736,43618.0,43616.0,0.00068885]
[1644596851788,0.05736,43618.0,43614.0,0.00019425]
[1644596851991,0.05736,43618.0,43615.0,0.00068885]
[1644596852992,0.05736,43618.0,43612.0,0.00019425]
[1644596853192,0.05736,43618.0,43614.0,0.00068886]
[1644596854037,0.11472015,43618.0,43614.0,0.00068886]
[1644596854238,0.05736,43617.0,43612.0,0.00019425]
[1644596854440,0.05736,43617.0,43614.0,0.00068886]
[1644596855345,0.057349,43619.0,43612.0,0.00019425]
[1644596855539,0.057349,43619.0,43613.0,0.00068886]
[1644596855939,0.057349,43619.0,43613.0,0.00088311]
[1644596856339,0.23,43621.0,43618.0,0.35337528]
[1644596856738,0.287346,43621.0,43618.0,0.35337528]
[1644596858190,0.287346,43621.0,43618.0,0.35356953]
[1644596858590,0.23,43621.0,43618.0,0.35356953]
[1644596859193,0.23,43621.0,43618.0,0.35337528]
[1644596859390,0.23,43621.0,43618.0,0.35356953]
[1644596859691,0.287346,43621.0,43618.0,0.35356953]
[1644596860495,0.287346,43621.0,43618.0,0.35337528]
[1644596860794,0.287346,43621.0,43618.0,0.00019425]
[1644596861092,0.287346,43621.0,43617.0,0.00068884]
[1644596861093,0.262346,43621.0,43617.0,0.00068884]
[1644596861338,0.262346,43621.0,43613.0,0.00019425]
[1644596861538,0.262346,43621.0,43617.0,0.00068884]
[1644596861739,0.312346,43621.0,43617.0,0.00068884]
[1644596862540,0.312346,43621.0,43612.0,0.00019425]
[1644596862739,0.312346,43621.0,43617.0,0.00068884]
[1644596862740,0.057354,43618.0,43617.0,0.00068884]
[1644596863840,0.057354,43618.0,43612.0,0.00019425]
[1644596863841,0.114709,43618.0,43612.0,0.00019425]
[1644596864042,0.114709,43618.0,43615.0,0.00068885]
[1644596864242,0.3282512,43616.0,43615.0,0.00068885]
[1644596865094,0.114711,43616.0,43612.0,0.00019425]
[1644596865293,0.057357,43616.0,43613.0,0.00068886]
[1644596866195,0.057357,43615.0,43612.0,0.00019425]
[1644596866397,0.057357,43615.0,43612.0,0.00068887]
[1644596866598,0.057357,43615.0,43612.0,0.00088312]
[1644596867395,0.057357,43616.0,43612.0,0.00088312]
[1644596867396,0.057358,43613.0,43612.0,0.00019425]
[1644596867597,0.057358,43613.0,43611.0,0.0061]
[1644596867598,0.057358,43613.0,43611.0,0.00678887]
[1644596868600,0.057358,43613.0,43611.0,0.0061]
[1644596869341,0.05735669,43619.0,43617.0,0.2937034]
[1644596869540,0.0459,43618.0,43617.0,0.2937034]
[1644596869741,0.29580545,43618.0,43617.0,0.2937034]
[1644596869940,0.35316245,43618.0,43617.0,0.2937034]
[1644596870342,0.160614,43618.0,43617.0,0.2937034]
[1644596870541,0.114714,43618.0,43617.0,0.2937034]
[1644596871341,0.45640578,43618.0,43617.0,0.2937034]
[1644596871542,0.114714,43618.0,43617.0,0.2937034]
[1644596871944,0.114714,43618.0,43617.0,0.0435567]
[1644596872146,0.160614,43618.0,43616.0,0.00019426]
[1644596872345,0.057366,43617.0,43615.0,0.00068885]
[1644596872591,0.160627,43617.0,43615.0,0.00068885]
[1644596872990,0.35130213,43616.0,43615.0,0.00068885]
[1644596873291,0.160627,43617.0,43615.0,0.00068885]
[1644596873494,0.114722,43615.0,43612.0,0.00019426]
[1644596873791,0.05736084,43614.0,43613.0,0.00068886]
[1644596874292,0.057361,43615.0,43613.0,0.00068886]
[1644596874491,0.31940452,43614.0,43613.0,0.00068886]
[1644596874691,0.057357,43613.0,43612.0,0.00019426]
[1644596874891,0.057357,43613.0,43611.0,0.00678887]
[1644596875890,0.057357,43613.0,43611.0,0.0061]
[1644596876944,0.057352,43615.0,43612.0,0.24265928]
[1644596877146,0.205,43621.0,43612.0,0.24285354]
[1644596877748,0.205,43621.0,43613.0,0.057347]
[1644596877946,0.205,43621.0,43618.0,0.39814596]
[1644596878147,0.057348,43619.0,43618.0,0.39814596]
[1644596878546,0.057348,43619.0,43616.0,0.00019426]
[1644596878749,0.057348,43619.0,43615.0,0.00068885]
[1644596878946,0.057348,43619.0,43616.0,0.00019426]
[1644596879147,0.057348,43619.0,43615.0,0.00068885]
[1644596879350,0.057348,43619.0,43614.0,0.00019426]
[1644596879549,0.057348,43619.0,43615.0,0.30643102]
[1644596880692,0.057348,43619.0,43615.0,0.30574217]
[1644596882492,0.057348,43619.0,43613.0,0.00019426]
[1644596882700,0.057348,43619.0,43612.0,0.00019426]
[1644596882701,0.33537736,43618.0,43612.0,0.00019426]
[1644596882893,0.057362,43616.0,43611.0,0.0061]
[1644596883392,0.0459,43615.0,43611.0,0.0061]
[1644596883594,0.0459,43614.0,43611.0,0.0061]
[1644596884040,0.103258,43614.0,43611.0,0.0061]
[1644596884240,0.34633328,43620.0,43611.0,0.0061]
[1644596884440,0.205,43621.0,43611.0,0.0061]
[1644596884641,0.30049271,43620.0,43611.0,0.00629426]
[1644596886345,0.22956741,43634.0,43630.0,0.63287763]
[1644596886541,0.22956741,43634.0,43631.0,0.0459]
[1644596887240,0.1568833,43637.0,43631.0,0.0459]
[1644596887498,9.0,43638.0,43636.0,0.32810919]
[1644596887896,9.0,43638.0,43632.0,0.057319]
[1644596888094,9.0,43638.0,43631.0,0.0459]
[1644596888095,0.15688729,43637.0,43631.0,0.0459]
[1644596888296,0.27636958,43636.0,43631.0,0.0459]
[1644596888796,0.33370458,43636.0,43631.0,0.0459]
[1644596888997,0.27636958,43636.0,43631.0,0.0459]
[1644596889594,0.27636958,43636.0,43627.0,0.37763241]
[1644596889998,9.0,43638.0,43629.0,0.057323]
[1644596890194,9.0,43638.0,43627.0,0.32763241]
[1644596890195,9.057326,43638.0,43627.0,0.32763241]
[1644596890703,0.00068849,43634.0,43627.0,0.32763241]
[1644596890897,0.00068849,43634.0,43628.0,0.08250674]
[1644596891097,0.00068849,43634.0,43629.0,0.35761032]
[1644596891342,9.0,43638.0,43629.0,0.35761032]
[1644596891645,9.0,43638.0,43636.0,0.33617951]
[1644596894343,8.99882258,43638.0,43636.0,0.33617951]
[1644596895193,9.22882258,43638.0,43636.0,0.33617951]
[1644596897998,9.22882258,43638.0,43636.0,0.62858615]
[1644596898200,9.22882258,43638.0,43637.0,0.6544482]
[1644596898598,9.22882258,43638.0,43637.0,0.6085482]
[1644596899245,8.70591492,43638.0,43637.0,0.6085482]
[1644596899648,3.67078091,43638.0,43637.0,0.8085482]
[1644596901649,3.67078091,43638.0,43637.0,0.8544482]
[1644596902251,3.67078091,43638.0,43637.0,0.568273]
[1644596903193,3.67078091,43638.0,43637.0,0.8668014]
[1644596903396,3.59401032,43697.0,43644.0,0.15]
[1644596903397,0.00025898,43649.0,43644.0,0.15]
[1644596903598,0.00025898,43651.0,43648.0,0.057286]
[1644596903793,0.00025898,43658.0,43648.0,0.057286]
[1644596903996,0.00125898,43659.0,43648.0,0.057286]
[1644596904193,0.00025898,43658.0,43648.0,0.057286]
[1644596904397,0.30935253,43659.0,43650.0,0.20862535]
[1644596904597,0.00025898,43658.0,43650.0,0.20862535]
[1644596904794,0.30935253,43659.0,43651.0,0.05728469]
[1644596904994,0.00025898,43658.0,43651.0,0.05728469]
[1644596905193,0.30909355,43659.0,43649.0,0.114575]
[1644596905194,0.30935253,43659.0,43649.0,0.114575]
[1644596905394,0.00025898,43658.0,43649.0,0.114575]
[1644596905595,0.30935253,43659.0,43649.0,0.114575]
[1644596905794,0.87346398,43659.0,43649.0,0.114575]
[1644596906946,0.31142515,43652.0,43648.0,0.1393]
[1644596907153,0.66019161,43652.0,43640.0,0.3211598]
[1644596907351,0.66019161,43652.0,43638.0,0.97473678]
[1644596907546,0.057312,43651.0,43638.0,0.97473678]
[1644596907747,0.05757098,43651.0,43638.0,0.97473678]
[1644596907946,0.31680077,43644.0,43638.0,0.65357698]
[1644596908146,0.251098,43646.0,43638.0,0.65357698]
[1644596908346,0.00025898,43649.0,43638.0,0.65357698]
[1644596908546,0.00068826,43647.0,43638.0,0.65357698]
[1644596908847,0.00068826,43647.0,43638.0,0.71088598]
[1644596909048,0.00068826,43647.0,43638.0,0.65357698]
[1644596909249,0.25254072,43645.0,43638.0,0.65357698]
[1644596909450,0.00025898,43648.0,43638.0,0.65357698]
[1644596909753,0.00068827,43645.0,43638.0,0.65357698]
[1644596910008,0.00056009,43645.0,43638.0,0.7108849]
[1644596910197,0.00081907,43645.0,43638.0,0.7608849]
[1644596910400,0.00056009,43645.0,43638.0,0.7608849]
[1644596910697,0.00025898,43647.0,43638.0,0.7108849]
[1644596910897,0.25398683,43649.0,43639.0,0.057308]
[1644596911100,0.00025898,43647.0,43640.0,0.05730414]